bitfinex/quotes_BTCUSD_20250115
["timestamp","ask_amount","ask_price","bid_price","bid_amount"]
[1736916957587,0.00179277,97350.0,97347.0,0.71798296]
[1736916957783,0.00179277,97350.0,97347.0,0.51353296]
[1736916958172,0.00179277,97350.0,97347.0,0.30808296]
[1736916958958,0.00179277,97350.0,97347.0,0.30908296]
[1736916959499,0.00179277,97350.0,97347.0,0.30808296]
[1736916960293,0.00179277,97350.0,97347.0,0.30708296]
[1736916960654,0.00279277,97350.0,97347.0,0.30708296]
[1736916961054,0.00179277,97350.0,97347.0,0.30708296]
[1736916961494,0.00279277,97350.0,97347.0,0.30708296]
[1736916962894,0.00279277,97350.0,97347.0,0.51253196]
[1736916966769,0.00179277,97350.0,97347.0,0.51253196]
[1736916967151,0.00279277,97350.0,97347.0,0.51253196]
[1736916969783,0.00179277,97350.0,97347.0,0.51253196]
[1736916970385,0.00279277,97350.0,97347.0,0.51253196]
[1736916978722,0.00279277,97350.0,97347.0,0.30708296]
[1736916978933,0.00279277,97350.0,97345.0,0.0008536]
[1736916979098,0.023,97347.0,97345.0,0.0008536]
[1736916979969,0.03911068,97347.0,97345.0,0.0008536]
[1736916981421,0.04111068,97347.0,97345.0,0.0008536]
[1736916981630,0.03911068,97347.0,97345.0,0.0008536]
[1736916982173,0.11512114,97346.0,97345.0,0.0018536]
[1736916982301,0.11512114,97346.0,97345.0,0.0008536]
[1736916983334,0.023,97346.0,97345.0,0.0008536]
[1736916983651,0.025,97346.0,97345.0,0.0008536]
[1736916993952,0.023,97346.0,97345.0,0.0008536]
[1736916994357,0.16094063,97346.0,97345.0,0.0008536]
[1736916994665,0.16194063,97346.0,97345.0,0.0008536]
[1736916996275,0.16094063,97346.0,97345.0,0.0008536]
[1736916996575,0.023,97346.0,97345.0,0.0008536]
[1736916997177,0.026,97346.0,97345.0,0.0008536]
[1736916997517,0.023,97346.0,97345.0,0.0008536]
[1736916997930,0.026,97346.0,97345.0,0.0008536]
[1736916998363,0.13022692,97346.0,97345.0,0.0008536]
[1736916998568,0.3462886,97346.0,97345.0,0.0008536]
[1736916999080,0.3432886,97346.0,97345.0,0.0008536]
[1736916999285,0.59599786,97346.0,97345.0,0.0008536]
[1736917000977,0.60099786,97346.0,97345.0,0.0008536]
[1736917001331,0.205487,97330.0,97317.0,0.205513]
[1736917001535,0.07993238,97324.0,97317.0,0.20600606]
[1736917001734,0.0798,97342.0,97319.0,0.205509]
[1736917001961,0.01611223,97327.0,97322.0,0.0822]
[1736917002159,0.01611223,97327.0,97320.0,0.18518684]
[1736917002160,0.01611223,97327.0,97326.0,0.25266115]
[1736917002497,0.09195178,97334.0,97333.0,0.48658]
[1736917002626,0.09195178,97334.0,97333.0,0.59080692]
[1736917003048,0.01611029,97341.0,97340.0,0.205465]
[1736917003256,0.01611029,97341.0,97340.0,0.336565]
[1736917004542,0.00179277,97350.0,97349.0,0.205446]
[1736917006045,0.00279277,97350.0,97347.0,0.20545]
[1736917006776,0.00279277,97350.0,97349.0,0.001]
[1736917007171,0.00179277,97350.0,97349.0,0.001]
[1736917007711,0.01890142,97350.0,97349.0,0.001]
[1736917008028,0.01790142,97350.0,97347.0,0.20545]
[1736917008232,0.01890142,97350.0,97347.0,0.20545]
[1736917008879,0.01790142,97350.0,97344.0,0.205455]
[1736917009232,0.01790142,97350.0,97347.0,0.001]
[1736917009615,0.01790142,97350.0,97344.0,0.205455]
[1736917010241,0.01790142,97350.0,97344.0,0.206455]
[1736917010599,0.01890142,97350.0,97344.0,0.206455]
[1736917011046,0.01790142,97350.0,97344.0,0.206455]
[1736917011344,0.01890142,97350.0,97344.0,0.206455]
[1736917013117,0.00279277,97350.0,97344.0,0.206455]
[1736917016333,0.01610897,97349.0,97344.0,0.206455]
[1736917017113,0.01610897,97349.0,97344.0,0.205455]
[1736917017617,0.01610897,97349.0,97342.0,0.20546]
[1736917019412,0.01610897,97349.0,97344.0,0.001]
[1736917019659,0.01610897,97349.0,97345.0,0.205454]
[1736917020917,0.01710897,97349.0,97345.0,0.205454]
[1736917021273,0.01610897,97349.0,97345.0,0.205454]
[1736917021709,0.01710897,97349.0,97345.0,0.205454]
[1736917032034,0.01698529,97349.0,97345.0,0.205454]
[1736917035289,0.01877848,97349.0,97345.0,0.205454]
[1736917044285,0.01877848,97349.0,97341.0,0.30708296]
[1736917044532,0.0774,97348.0,97341.0,0.30708296]
[1736917044734,0.023,97347.0,97341.0,0.30708296]
[1736917045526,0.023,97345.0,97341.0,0.30708296]
[1736917045731,0.023,97344.0,97341.0,0.30708296]
[1736917046149,0.228452,97346.0,97341.0,0.30708296]
[1736917046501,0.023,97344.0,97341.0,0.30708296]
[1736917046681,0.228456,97344.0,97341.0,0.30708296]
[1736917046886,0.228456,97344.0,97341.0,0.30808296]
[1736917047290,0.433913,97344.0,97341.0,0.30708296]
[1736917047506,0.354961,97342.0,97341.0,0.30793666]
[1736917047728,0.45918792,97342.0,97341.0,0.0008537]
[1736917048372,0.5511397,97342.0,97341.0,0.0008537]
[1736917048831,0.5561397,97342.0,97341.0,0.0008537]
[1736917049067,0.5511397,97342.0,97341.0,0.0008537]
[1736917049408,0.79893886,97342.0,97341.0,0.0008537]
[1736917049638,0.79993886,97342.0,97341.0,0.0008537]
[1736917049839,0.91116578,97342.0,97341.0,0.0018537]
[1736917050048,1.16116578,97342.0,97341.0,0.0018537]
[1736917050276,1.26116578,97342.0,97341.0,0.0018537]
[1736917051161,1.26116578,97342.0,97341.0,0.0008537]
[1736917051162,1.25416578,97342.0,97341.0,0.0008537]
[1736917051317,0.0774,97333.0,97307.0,0.205533]
[1736917051537,0.2854481,97318.0,97314.0,0.00049306]
[1736917051730,0.205511,97318.0,97314.0,0.00049306]
[1736917051938,0.22162477,97318.0,97314.0,0.00049306]
[1736917052680,0.22662477,97318.0,97314.0,0.00049306]
[1736917053177,0.22762477,97318.0,97314.0,0.00049306]
[1736917053481,0.22662477,97318.0,97314.0,0.00049306]
[1736917053686,0.22762477,97318.0,97314.0,0.00049306]
[1736917054230,0.22262477,97318.0,97314.0,0.00049306]
[1736917054578,0.22762477,97318.0,97314.0,0.00149306]
[1736917054805,0.22262477,97318.0,97314.0,0.00049306]
[1736917055310,0.22462477,97318.0,97314.0,0.00049306]
[1736917055496,0.22262477,97318.0,97314.0,0.00049306]
[1736917056100,0.22662477,97318.0,97314.0,0.00049306]
[1736917057694,0.22262477,97318.0,97314.0,0.00049306]
[1736917057889,0.22662477,97318.0,97314.0,0.00049306]
[1736917058371,0.02111377,97318.0,97314.0,0.00049306]
[1736917058583,0.02111377,97318.0,97315.0,0.205518]
[1736917059507,0.02011377,97318.0,97315.0,0.205518]
[1736917060227,0.02190739,97318.0,97315.0,0.205518]
[1736917060668,0.01790739,97318.0,97315.0,0.205518]
[1736917061071,0.01890739,97318.0,97315.0,0.205518]
[1736917062653,0.01890739,97318.0,97315.0,0.411035]
[1736917063658,0.01790739,97318.0,97315.0,0.206517]
[1736917064671,0.01790739,97318.0,97315.0,0.205517]
[1736917065624,0.01790739,97318.0,97315.0,0.411034]
[1736917066023,0.01790739,97318.0,97315.0,0.412034]
[1736917067860,0.01790739,97318.0,97315.0,0.206517]
[1736917069068,0.01790739,97318.0,97315.0,0.205517]
[1736917069823,0.01790739,97318.0,97315.0,0.411034]
[1736917069983,0.01790739,97318.0,97315.0,0.205517]
[1736917070406,0.01890739,97318.0,97315.0,0.411034]
[1736917070612,0.01890739,97318.0,97314.0,0.00049306]
[1736917070821,0.01790739,97318.0,97314.0,0.00049306]
[1736917071018,0.01890739,97318.0,97314.0,0.00049306]
[1736917071976,0.01790739,97318.0,97314.0,0.00049306]
[1736917073109,0.02090739,97318.0,97314.0,0.00049306]
[1736917073347,0.02190739,97318.0,97314.0,0.00049306]
[1736917078216,0.023,97316.0,97314.0,0.00049306]
[1736917079984,0.025,97316.0,97314.0,0.00049306]
[1736917081827,0.02213697,97316.0,97314.0,0.00049306]
[1736917085190,0.002,97316.0,97314.0,0.00049306]
[1736917093796,0.13983523,97316.0,97314.0,0.00049306]
[1736917094400,0.13983523,97316.0,97314.0,0.00134706]
[1736917094751,0.13783523,97315.0,97314.0,0.00134706]
[1736917095666,0.00379341,97316.0,97314.0,0.00134706]
[1736917095955,0.00179341,97316.0,97314.0,0.00134706]
[1736917096375,0.002,97315.0,97314.0,0.00134706]
[1736917097243,0.00179341,97316.0,97314.0,0.00134706]
[1736917097629,0.001,97315.0,97314.0,0.00134706]
[1736917098186,0.00179341,97316.0,97314.0,0.00134706]
[1736917098486,0.00379341,97316.0,97314.0,0.00134706]
[1736917099090,0.00379341,97316.0,97315.0,0.205518]
[1736917099478,0.00379341,97316.0,97315.0,0.63030854]
[1736917100418,0.00879341,97316.0,97315.0,0.63030854]
[1736917100621,0.00679341,97316.0,97315.0,0.63030854]
[1736917100766,0.00179341,97316.0,97315.0,0.63030854]
[1736917101175,0.00179341,97316.0,97315.0,0.63330854]
[1736917101330,0.00179341,97316.0,97315.0,0.63030854]
[1736917101530,0.00179341,97316.0,97315.0,0.63230854]
[1736917101732,0.00179341,97316.0,97315.0,0.63430854]
[1736917103163,0.00179341,97316.0,97315.0,0.63230854]
[1736917103368,0.00179341,97316.0,97315.0,0.63430854]
[1736917103605,0.00179341,97316.0,97315.0,0.63230854]
[1736917103797,0.00179341,97316.0,97315.0,0.63430854]
[1736917111302,0.00179341,97316.0,97315.0,0.63230854]
[1736917111803,0.00179341,97316.0,97315.0,0.63030854]
[1736917113512,0.00179341,97316.0,97315.0,0.63530854]
[1736917118886,0.00179341,97316.0,97315.0,0.63616254]
[1736917123163,0.00179341,97316.0,97315.0,0.50716254]
[1736917123918,0.00179341,97316.0,97315.0,0.50516254]
[1736917124083,0.00179341,97316.0,97315.0,0.50216254]
[1736917124291,0.00179341,97316.0,97315.0,0.50316254]
[1736917124497,0.00179341,97316.0,97315.0,0.50516254]
[1736917124698,0.00179341,97316.0,97315.0,0.50416254]
[1736917124967,0.00179341,97316.0,97315.0,0.50516254]
[1736917132086,0.00179341,97316.0,97315.0,0.73458946]
[1736917133180,0.00179341,97316.0,97315.0,0.73158946]
[1736917133381,0.00179341,97316.0,97315.0,0.73258946]
[1736917133688,0.00179341,97316.0,97315.0,0.73758946]
[1736917133900,0.00179341,97316.0,97315.0,0.73158946]
[1736917134107,0.00179341,97316.0,97315.0,0.73558946]
[1736917134312,0.00179341,97316.0,97315.0,0.73758946]
[1736917134513,0.00179341,97316.0,97315.0,0.73358946]
[1736917134715,0.00279341,97316.0,97315.0,0.74058946]
[1736917135806,0.00279341,97316.0,97315.0,0.73858946]
[1736917136003,0.00279341,97316.0,97315.0,0.74158946]
[1736917150605,0.00279341,97316.0,97315.0,0.66628946]
[1736917151811,0.00279341,97316.0,97315.0,0.51216254]
[1736917190560,0.00279341,97316.0,97315.0,0.50916254]
[1736917191052,0.00279341,97316.0,97315.0,0.51016254]
[1736917191758,0.00179341,97316.0,97315.0,0.50316254]
[1736917191918,0.00179341,97316.0,97315.0,0.50516254]
[1736917192337,0.00179341,97316.0,97315.0,0.50316254]
[1736917192516,0.00179341,97316.0,97315.0,0.50416254]
[1736917192876,0.00179341,97316.0,97315.0,0.50516254]
[1736917194130,0.00179341,97316.0,97315.0,0.50416254]
[1736917194302,0.00179341,97316.0,97315.0,0.50616254]
[1736917217836,0.00179341,97316.0,97315.0,0.88558946]
[1736917218058,0.00179341,97316.0,97315.0,1.53018946]
[1736917218886,4.1e-07,97316.0,97315.0,1.55831921]
[1736917219105,0.00100041,97316.0,97315.0,1.57031921]
[1736917219315,4.1e-07,97316.0,97315.0,1.53818946]
[1736917219522,0.00179362,97318.0,97317.0,0.1]
[1736917219738,0.00179362,97318.0,97317.0,0.28475423]
[1736917219912,0.00179362,97318.0,97317.0,0.28372692]
[1736917220120,0.07799277,97350.0,97317.0,0.28372692]
[1736917220121,0.09237123,97346.0,97345.0,0.205454]
[1736917221156,0.00179277,97350.0,97345.0,0.410908]
[1736917222513,0.0762,97348.0,97345.0,0.410908]
[1736917223322,0.00179277,97350.0,97345.0,0.410908]
[1736917223535,0.00279319,97349.0,97345.0,0.410908]
[1736917223902,0.00179319,97349.0,97345.0,0.410908]
[1736917224113,0.00179319,97349.0,97347.0,0.20545]
[1736917225323,0.00179319,97349.0,97348.0,0.29579054]
[1736917227016,0.00179319,97349.0,97348.0,0.29779054]
[1736917227417,0.00179319,97349.0,97348.0,0.30079054]
[1736917227646,0.00179319,97349.0,97348.0,0.29779054]
[1736917228019,0.00179319,97349.0,97348.0,0.30079054]
[1736917228446,0.07729319,97349.0,97348.0,0.29779054]
[1736917229046,0.07729319,97349.0,97348.0,0.29579054]
[1736917229271,0.09340152,97349.0,97348.0,0.29579054]
[1736917229773,0.09340152,97349.0,97348.0,0.29779054]
[1736917230580,0.07729319,97349.0,97348.0,0.29779054]
[1736917230729,0.07729319,97349.0,97348.0,0.29579054]
[1736917231315,0.07729319,97349.0,97348.0,0.29879054]
[1736917231466,0.07729319,97349.0,97348.0,0.29579054]
[1736917234394,0.00179319,97349.0,97348.0,0.29579054]
[1736917235490,0.00179319,97349.0,97348.0,0.29679054]
[1736917236179,0.01790153,97349.0,97348.0,0.29679054]
[1736917236346,0.01790153,97349.0,97348.0,0.29579054]
[1736917236770,0.01790153,97349.0,97348.0,0.29779054]
[1736917238145,0.01790153,97349.0,97348.0,0.29679054]
[1736917238476,0.01890153,97349.0,97348.0,0.29679054]
[1736917239020,0.01890153,97349.0,97348.0,0.29579054]
[1736917239492,0.01790153,97349.0,97348.0,0.29579054]
[1736917239675,0.01790153,97349.0,97348.0,0.29679054]
[1736917240118,0.01790153,97349.0,97348.0,0.29779054]
[1736917243092,0.00179319,97349.0,97348.0,0.29779054]
[1736917247441,0.01786164,97349.0,97348.0,0.29779054]
[1736917249141,0.01786164,97349.0,97348.0,0.29679054]
[1736917249523,0.01786164,97349.0,97348.0,0.29779054]
[1736917249692,0.01786164,97349.0,97348.0,0.29679054]
[1736917249910,0.01786164,97349.0,97348.0,0.29779054]
[1736917253149,0.00175319,97349.0,97348.0,0.29779054]
[1736917256062,0.01786157,97349.0,97348.0,0.29779054]
[1736917256696,0.01786157,97349.0,97348.0,0.29864404]
[1736917262763,0.01786157,97349.0,97348.0,0.29764404]
[1736917263176,0.00175319,97349.0,97348.0,0.29764404]
[1736917263466,0.00175319,97349.0,97348.0,0.29664404]
[1736917263616,0.00275319,97349.0,97348.0,0.29664404]
[1736917266153,0.01886223,97349.0,97348.0,0.29664404]
[1736917266739,0.27668915,97349.0,97348.0,0.29664404]
[1736917267102,0.27668915,97349.0,97348.0,0.0008535]
[1736917268465,0.6180568,97349.0,97348.0,0.0008535]
[1736917269780,0.6170568,97349.0,97348.0,0.0008535]
[1736917270588,0.6180568,97349.0,97348.0,0.0008535]
[1736917271536,0.023,97348.0,97335.0,0.19332648]
[1736917271834,0.15998902,97345.0,97335.0,0.19332648]
[1736917271994,0.12722692,97344.0,97335.0,0.19332648]
[1736917273000,0.12722692,97344.0,97335.0,0.19432648]
[1736917273294,0.12722692,97344.0,97335.0,0.19332648]
[1736917273493,0.09239771,97342.0,97335.0,0.19332648]
[1736917273726,0.09239771,97342.0,97335.0,0.19432648]
[1736917273884,0.09239771,97342.0,97335.0,0.19332648]
[1736917274532,0.023,97342.0,97335.0,0.19332648]
[1736917276311,0.027,97342.0,97335.0,0.19332648]
[1736917276811,0.023,97343.0,97335.0,0.19332648]
[1736917277010,0.09239771,97344.0,97342.0,0.205461]
[1736917277429,0.10850816,97344.0,97342.0,0.205461]
[1736917277924,0.10850816,97344.0,97336.0,0.205473]
[1736917278149,0.10850816,97344.0,97341.0,0.205461]
[1736917278355,0.003,97342.0,97341.0,0.205461]
[1736917280097,0.01611045,97344.0,97341.0,0.205461]
[1736917280258,0.01611045,97344.0,97341.0,0.2063145]
[1736917280459,0.02011045,97344.0,97341.0,0.2063145]
[1736917280872,0.01611045,97344.0,97341.0,0.0008535]
[1736917281591,0.003,97342.0,97341.0,0.0008535]
[1736917281796,0.01611045,97344.0,97341.0,0.0008535]
[1736917283071,0.023,97345.0,97341.0,0.0008535]
[1736917283808,0.004,97344.0,97341.0,0.0008535]
[1736917284880,0.023,97345.0,97341.0,0.0008535]
[1736917285311,0.027,97345.0,97341.0,0.0008535]
[1736917285442,0.023,97345.0,97341.0,0.0008535]
[1736917285870,0.004,97344.0,97341.0,0.0008535]
[1736917286058,0.03911074,97345.0,97341.0,0.0008535]
[1736917286648,0.03911074,97345.0,97342.0,0.410921]
[1736917286649,0.02011074,97345.0,97342.0,0.410921]
[1736917286851,0.02011074,97345.0,97343.0,0.0766]
[1736917287130,0.02011074,97345.0,97344.0,0.205456]
[1736917288257,0.004,97345.0,97344.0,0.205456]
[1736917289259,0.00175319,97349.0,97343.0,0.0766]
[1736917289260,0.00175319,97349.0,97346.0,0.205452]
[1736917289948,0.00175319,97349.0,97346.0,0.410904]
[1736917290572,0.01786165,97349.0,97346.0,0.410904]
[1736917290866,0.01786165,97349.0,97346.0,0.205452]
[1736917291928,0.01786165,97349.0,97346.0,0.206452]
[1736917292551,0.01786165,97349.0,97346.0,0.205452]
[1736917292778,0.01786165,97349.0,97346.0,0.206452]
[1736917292985,0.00275319,97349.0,97346.0,0.001]
[1736917293158,0.00275319,97349.0,97342.0,0.20546]
[1736917293358,0.00175319,97349.0,97342.0,0.20546]
[1736917293757,0.00375319,97349.0,97342.0,0.20546]
[1736917294821,0.00375319,97349.0,97341.0,0.0008535]
[1736917295019,0.00175319,97349.0,97341.0,0.0008535]
[1736917295226,0.00675319,97349.0,97341.0,0.0008535]
[1736917295739,0.09412267,97349.0,97341.0,0.0008535]
[1736917295941,0.023,97344.0,97341.0,0.0008535]
[1736917296070,0.023,97342.0,97341.0,0.0008535]
[1736917297288,0.03911057,97342.0,97341.0,0.0008535]
[1736917298344,0.14333749,97342.0,97341.0,0.0008535]
[1736917299504,0.14733749,97342.0,97341.0,0.0008535]
[1736917299918,0.48830475,97342.0,97341.0,0.0008535]
[1736917300364,0.59253167,97342.0,97341.0,0.0008535]
[1736917300658,0.67093167,97342.0,97341.0,0.0008535]
[1736917301275,0.56670475,97342.0,97341.0,0.0008535]
[1736917301456,0.61170475,97342.0,97341.0,0.0008535]
[1736917302096,0.76170475,97342.0,97341.0,0.0008535]
[1736917302274,0.86170475,97342.0,97341.0,0.0008535]
[1736917302479,0.84159418,97342.0,97341.0,0.0008535]
[1736917302690,0.9458211,97342.0,97341.0,0.0008535]
[1736917302938,0.9458211,97342.0,97341.0,0.0018535]
[1736917302939,0.9548211,97342.0,97341.0,0.0018535]
[1736917303080,0.9548211,97342.0,97318.0,0.0008538]
[1736917303081,0.4964,97336.0,97318.0,0.0008538]
[1736917303254,0.80609992,97336.0,97318.0,0.0008538]
[1736917304707,0.80709992,97336.0,97318.0,0.0008538]
[1736917304920,0.91132684,97336.0,97318.0,0.0008538]
[1736917305352,1.72928621,97336.0,97318.0,0.0008538]
[1736917305684,1.7454023,97336.0,97318.0,0.0008538]
[1736917306157,1.7444023,97336.0,97318.0,0.0008538]
[1736917306366,1.7494023,97336.0,97318.0,0.0008538]
[1736917306538,1.7494023,97336.0,97279.0,0.0007364]
[1736917306539,0.12190221,97295.0,97279.0,0.0007364]
[1736917306776,0.12190221,97295.0,97263.0,0.205626]
[1736917306777,0.12190221,97294.0,97284.0,0.00049306]
[1736917306978,0.30979092,97293.0,97284.0,0.00049306]
[1736917307395,0.023,97291.0,97284.0,0.00049306]
[1736917307910,0.023,97288.0,97284.0,0.00249306]
[1736917308114,0.023,97286.0,97284.0,0.00249306]
[1736917308329,0.33280792,97285.0,97284.0,0.00349306]
[1736917308661,0.33280792,97285.0,97284.0,0.00249306]
[1736917309270,0.41530792,97285.0,97284.0,0.00049306]
[1736917309474,0.41530792,97285.0,97284.0,0.00249306]
[1736917309875,0.41530792,97285.0,97284.0,0.00049306]
[1736917310102,0.41830792,97285.0,97284.0,0.00049306]
[1736917315334,0.41830792,97285.0,97284.0,0.00134706]
[1736917317263,0.33580792,97285.0,97284.0,0.00134706]
[1736917317471,0.35192847,97285.0,97284.0,0.00134706]
[1736917323028,0.33580792,97285.0,97284.0,0.00134706]
[1736917324453,0.003,97285.0,97284.0,0.00134706]
[1736917326060,0.205568,97292.0,97284.0,0.00134706]
[1736917326587,0.003,97285.0,97284.0,0.00134706]
[1736917326738,0.205568,97292.0,97284.0,0.00134706]
[1736917326953,0.023,97285.0,97284.0,0.00134706]
[1736917327288,0.13022692,97285.0,97284.0,0.00134706]
[1736917327642,0.14634648,97285.0,97284.0,0.00134706]
[1736917328381,0.14813989,97285.0,97284.0,0.00134706]
[1736917330730,0.15870427,97285.0,97284.0,0.00134706]
[1736917331156,0.24806406,97285.0,97284.0,0.00134706]
[1736917332964,0.2349445,97285.0,97284.0,0.00134706]
[1736917333575,0.14258471,97285.0,97284.0,0.00134706]
[1736917333811,0.13958471,97285.0,97284.0,0.00134706]
[1736917334345,0.14258471,97285.0,97284.0,0.00134706]
[1736917334546,0.13958471,97285.0,97284.0,0.00134706]
[1736917334816,0.14258471,97285.0,97284.0,0.00134706]
[1736917336247,0.13958471,97285.0,97284.0,0.00134706]
[1736917336614,0.14258471,97285.0,97284.0,0.00134706]
[1736917336820,0.13958471,97285.0,97284.0,0.00134706]
[1736917337198,0.14258471,97285.0,97284.0,0.00134706]
[1736917337399,0.13958471,97285.0,97284.0,0.00134706]
[1736917337785,0.14258471,97285.0,97284.0,0.00134706]
[1736917338005,0.13958471,97285.0,97284.0,0.00134706]
[1736917339949,0.14258471,97285.0,97284.0,0.00134706]
[1736917340157,0.15870526,97285.0,97284.0,0.00134706]
[1736917340513,0.14814088,97285.0,97284.0,0.00134706]
[1736917340714,0.04391396,97285.0,97284.0,0.00134706]
[1736917340915,0.02091396,97285.0,97284.0,0.00134706]
[1736917341122,0.02091396,97285.0,97284.0,0.20693006]
[1736917341656,0.02091396,97285.0,97284.0,0.28653006]
[1736917342619,0.02091396,97285.0,97284.0,0.28753006]
[1736917343023,0.00179341,97285.0,97284.0,0.33393006]
[1736917343223,0.00179341,97285.0,97284.0,0.43815698]
[1736917343447,0.00179341,97285.0,97284.0,0.43915698]
[1736917343859,0.00179341,97285.0,97284.0,0.43815698]
[1736917344217,0.00179341,97285.0,97284.0,0.43715698]
[1736917344342,0.00179341,97285.0,97284.0,0.43915698]
[1736917344550,0.00179341,97285.0,97284.0,0.44115698]
[1736917344774,0.00179341,97285.0,97284.0,0.43915698]
[1736917344977,0.00179341,97285.0,97284.0,0.43715698]
[1736917345365,0.00179341,97285.0,97284.0,0.44115698]
[1736917346600,0.00279341,97285.0,97284.0,0.44515698]
[1736917347200,0.00279341,97285.0,97284.0,0.74094752]
[1736917349854,0.00279341,97285.0,97284.0,0.99094752]
[1736917350057,0.09157857,97321.0,97320.0,0.205507]
[1736917350280,0.09157857,97321.0,97317.0,0.0796]
[1736917350460,0.09157857,97321.0,97318.0,0.205511]
[1736917351139,0.09157857,97321.0,97320.0,0.001]
[1736917351402,0.12190896,97330.0,97320.0,0.001]
[1736917351403,0.12190896,97330.0,97320.0,0.00149306]
[1736917351624,0.12190896,97330.0,97321.0,0.205505]
[1736917351824,0.12190896,97330.0,97322.0,0.205503]
[1736917352036,0.12190896,97330.0,97320.0,0.00049306]
[1736917352987,0.01611416,97328.0,97320.0,0.00049306]
[1736917353731,0.01611416,97328.0,97321.0,0.205505]
[1736917354063,0.01611416,97328.0,97326.0,0.205494]
[1736917354437,0.002,97330.0,97322.0,0.205503]
[1736917354643,0.023,97335.0,97324.0,0.205499]
[1736917355037,0.00179341,97336.0,97323.0,0.0464]
[1736917355203,0.00179341,97336.0,97331.0,0.205483]
[1736917355829,0.001,97335.0,97331.0,0.205483]
[1736917356452,0.01711262,97335.0,97331.0,0.205483]
[1736917357223,0.01611262,97335.0,97331.0,0.205483]
[1736917357527,0.01611262,97335.0,97333.0,0.205478]
[1736917357711,0.02011262,97335.0,97333.0,0.205478]
[1736917358156,0.00179341,97336.0,97333.0,0.205478]
[1736917358317,0.002,97335.0,97329.0,0.205487]
[1736917358651,0.00179341,97336.0,97333.0,0.205478]
[1736917359290,0.00179341,97336.0,97329.0,0.205487]
[1736917360126,0.00179341,97336.0,97334.0,0.205477]
[1736917360331,0.0161121,97335.0,97334.0,0.205477]
[1736917361441,0.0161121,97335.0,97334.0,0.206477]
[1736917361781,0.0161121,97335.0,97334.0,0.205477]
[1736917361990,0.0161121,97335.0,97334.0,0.207477]
[1736917362815,0.01790509,97335.0,97334.0,0.207477]
[1736917363435,0.00179299,97335.0,97334.0,0.207477]
[1736917364787,0.00179299,97335.0,97334.0,0.205477]
[1736917365011,0.00379299,97335.0,97334.0,0.205477]
[1736917365834,0.00179299,97335.0,97334.0,0.207477]
[1736917366055,0.00179299,97335.0,97334.0,0.333577]
[1736917366264,0.00179299,97335.0,97334.0,0.43880392]
[1736917366606,0.00179299,97335.0,97334.0,0.59932858]
[1736917367009,0.00179299,97335.0,97334.0,0.59732858]
[1736917367438,0.00179299,97335.0,97334.0,0.59932858]
[1736917367596,0.00179299,97335.0,97334.0,1.53971912]
[1736917367795,0.00179299,97335.0,97334.0,1.53671912]
[1736917368211,0.00179299,97335.0,97334.0,1.54371912]
[1736917368459,0.00179299,97335.0,97334.0,1.54171912]
[1736917368618,0.00279299,97335.0,97334.0,1.54571912]
[1736917368966,0.00279299,97335.0,97334.0,1.54271912]
[1736917369172,0.00179299,97335.0,97334.0,1.54271912]
[1736917369430,0.00279299,97335.0,97334.0,1.55171912]
[1736917370385,0.00279299,97335.0,97334.0,1.54571912]
[1736917370796,0.00279299,97335.0,97334.0,1.55071912]
[1736917373450,4e-07,97336.0,97335.0,0.25]
[1736917373714,4e-07,97336.0,97335.0,0.60602692]
[1736917374812,4e-07,97336.0,97335.0,0.61102692]
[1736917375186,4e-07,97336.0,97335.0,0.62002692]
[1736917377939,4e-07,97336.0,97335.0,1.46041746]
[1736917379838,4e-07,97336.0,97335.0,1.45541746]
[1736917380264,4e-07,97336.0,97335.0,1.46341746]
[1736917381112,4e-07,97336.0,97335.0,1.45441746]
[1736917381344,4e-07,97336.0,97335.0,1.46341746]
[1736917382961,4e-07,97336.0,97335.0,1.44041746]
[1736917383972,3.6e-07,97350.0,97349.0,0.455446]
[1736917384148,3.6e-07,97350.0,97349.0,1.52692346]
[1736917385479,3.6e-07,97350.0,97349.0,1.53592346]
[1736917386257,3.6e-07,97350.0,97349.0,1.54092346]
[1736917387091,3.6e-07,97350.0,97349.0,1.55108117]
[1736917389520,3.6e-07,97350.0,97349.0,1.57203877]
[1736917390457,3.6e-07,97350.0,97349.0,1.56627877]
[1736917390661,3.6e-07,97350.0,97349.0,1.57203877]
[1736917391762,3.6e-07,97350.0,97349.0,1.39603877]
[1736917392557,3.6e-07,97350.0,97349.0,1.39027877]
[1736917392769,3.6e-07,97350.0,97349.0,1.39603877]
[1736917392998,3.6e-07,97350.0,97349.0,1.34517877]
[1736917393144,3.6e-07,97350.0,97349.0,1.35093877]
[1736917393347,3.6e-07,97350.0,97349.0,1.34517877]
[1736917393945,3.6e-07,97350.0,97349.0,1.35093877]
[1736917402739,3.6e-07,97350.0,97349.0,1.34517877]
[1736917402939,3.6e-07,97350.0,97349.0,1.35093877]
[1736917403912,3.6e-07,97350.0,97349.0,1.34517877]
[1736917404032,3.6e-07,97350.0,97349.0,1.35093877]
[1736917404268,0.07360036,97364.0,97363.0,0.50120654]
[1736917405397,0.07366113,97364.0,97363.0,0.50120654]
[1736917405606,0.07366113,97364.0,97363.0,0.50820654]
[1736917406410,0.07366113,97364.0,97363.0,0.51826461]
[1736917410416,0.09845286,97364.0,97363.0,0.50820654]
[1736917410618,0.09845286,97364.0,97363.0,0.007]
[1736917411419,0.09845286,97364.0,97363.0,0.004]
[1736917411653,0.24957978,97364.0,97363.0,0.004]
[1736917411853,0.2963,97363.0,97349.0,0.0008532]
[1736917412016,0.1233,97356.0,97349.0,0.0008532]
[1736917412214,0.0764,97353.0,97349.0,0.0008532]
[1736917412424,0.10422692,97355.0,97349.0,0.0008532]
[1736917412425,0.12722692,97352.0,97349.0,0.0008532]
[1736917412738,0.0981,97350.0,97349.0,0.0008532]
[1736917415825,0.1041,97350.0,97349.0,0.0008532]
[1736917416552,0.1101,97350.0,97349.0,0.0018532]
[1736917416849,0.24855599,97350.0,97349.0,0.0018532]
[1736917417617,0.1101,97350.0,97349.0,0.0018532]
[1736917418417,0.1081,97350.0,97349.0,0.0018532]
[1736917418818,0.1101,97350.0,97349.0,0.0018532]
[1736917419061,0.12620984,97350.0,97349.0,0.0018532]
[1736917419256,0.12220984,97350.0,97349.0,0.0008532]
[1736917419460,0.1001,97350.0,97349.0,0.0008532]
[1736917419607,0.25612692,97350.0,97349.0,0.0008532]
[1736917419807,0.35615196,97350.0,97349.0,0.0008532]
[1736917420245,0.40612692,97350.0,97349.0,0.0008532]
[1736917420453,0.40012692,97350.0,97349.0,0.0008532]
[1736917420758,0.40612692,97350.0,97349.0,0.0008532]
[1736917421472,0.1439,97348.0,97316.0,0.28449702]
[1736917421617,0.0981,97325.0,97319.0,0.205507]
[1736917423154,0.114213,97325.0,97319.0,0.20600006]
[1736917423329,0.114213,97325.0,97319.0,0.20700006]
[1736917423534,0.115213,97325.0,97319.0,0.20700006]